bitfinex/quotes_SOLUSD_20260214
["timestamp","ask_amount","ask_price","bid_price","bid_amount"]
[1771104153730,7.22252315,88.13,88.06,0.2]
[1771104153731,0.46456485,88.079,88.06,0.2]
[1771104155257,0.46456485,88.078,88.06,0.2]
[1771104156553,11.35265414,88.086,88.06,0.2]
[1771104156754,0.46456485,88.094,88.062,0.45660988]
[1771104157137,11.81607943,88.094,88.062,0.45660988]
[1771104157338,0.46456485,88.093,88.062,0.45660988]
[1771104157562,0.46456485,88.093,88.06,0.2]
[1771104158139,0.46456485,88.089,88.06,0.2]
[1771104159460,0.46456485,88.087,88.06,0.2]
[1771104159862,0.46456485,88.087,88.06,11.55582854]
[1771104160659,0.46456485,88.087,88.06,0.2]
[1771104161537,0.46456485,88.087,88.061,11.35576475]
[1771104162460,0.46456485,88.087,88.06,0.2]
[1771104162461,0.47533944,88.085,88.06,0.2]
[1771104162856,0.47533944,88.079,88.05,0.2]
[1771104164565,0.4668919,88.077,88.05,0.2]
[1771104167172,0.4668919,88.075,88.05,0.2]
[1771104169065,11.35383078,88.076,88.051,0.48166989]
[1771104169253,0.5,88.123,88.07,7.22252315]
[1771104169564,0.5,88.123,88.08,7.22252315]
[1771104169952,0.5,88.119,88.08,7.22252315]
[1771104170769,0.5,88.117,88.08,7.22252315]
[1771104171770,0.5,88.117,88.08,18.57579569]
[1771104172854,0.5,88.115,88.08,7.22252315]
[1771104173467,0.5,88.115,88.081,11.35318627]
[1771104173669,0.5,88.115,88.08,7.22252315]
[1771104175581,0.5,88.113,88.08,7.22252315]
[1771104176581,0.5,88.089,88.007,56.81313184]
[1771104176756,0.5,88.079,88.034,28.39782045]
[1771104176960,0.5,88.079,88.042,11.35810613]
[1771104177775,0.5,88.077,88.042,11.35810613]
[1771104177970,0.5,88.077,88.04,3.09153273]
[1771104178178,0.5,88.077,88.04,0.2]
[1771104178369,0.5,88.077,88.041,11.35821885]
[1771104178877,0.5,88.077,88.045,11.35775511]
[1771104179083,0.5,88.077,88.05,7.42933042]
[1771104179465,0.5,88.077,88.05,0.2]
[1771104180482,0.5,88.086,88.05,7.42933042]
[1771104181488,11.35325029,88.081,88.051,11.35705443]
[1771104183271,0.5,88.095,88.07,7.22933042]
[1771104183470,0.5,88.095,88.06,7.22933042]
[1771104185383,0.5,88.091,88.05,7.42933042]
[1771104185699,0.5,88.089,88.05,0.2]
[1771104185907,0.5,88.079,88.05,0.2]
[1771104186673,11.35151088,88.094,88.07,7.22933042]
[1771104186875,0.5,88.093,88.06,7.22472049]
[1771104187083,0.5,88.093,88.051,11.35705443]
[1771104187281,0.5,88.091,88.06,7.22472049]
[1771104188996,0.5,88.089,88.05,0.2]
[1771104189178,0.5,88.079,88.05,0.2]
[1771104189490,0.5,88.077,88.05,0.2]
[1771104193686,0.5,88.071,88.05,0.2]
[1771104194196,30.0,88.073,88.051,11.35705443]
[1771104194394,30.0,88.073,88.06,7.22472049]
[1771104194571,30.0,88.069,88.051,11.35705443]
[1771104194997,30.0,88.069,88.05,0.2]
[1771104195590,30.0,88.069,88.05,7.42472049]
[1771104195898,30.0,88.069,88.051,11.35705443]
[1771104196782,30.0,88.069,88.06,7.22472049]
[1771104196982,0.5,88.091,88.06,7.22472049]
[1771104197712,0.5,88.089,88.06,7.22472049]
[1771104198599,0.5,88.089,88.055,11.35641003]
[1771104199498,0.5,88.089,88.06,7.22472049]
[1771104199702,0.5,88.087,88.06,18.58059223]
[1771104200788,0.5,88.085,88.051,11.35705443]
[1771104201401,0.5,88.085,88.06,2.89059936]
[1771104201789,0.5,88.085,88.051,11.35705443]
[1771104205607,0.5,88.083,88.051,11.35705443]
[1771104211824,0.5,88.083,88.004,44.1]
[1771104211825,0.5,88.059,88.017,0.2]
[1771104211987,0.46880435,88.058,88.017,0.2]
[1771104212388,0.46880435,88.058,88.002,0.2]
[1771104212593,0.46880435,88.029,87.966,0.2]
[1771104212798,0.46880435,88.009,87.966,0.2]
[1771104212995,30.0,88.024,87.991,0.2]
[1771104212996,0.46880435,88.019,87.991,0.2]
[1771104213585,11.36131245,88.018,87.991,0.2]
[1771104213790,30.0,88.006,87.991,0.2]
[1771104213992,29.8,88.006,87.991,0.2]
[1771104215004,11.86019108,88.027,88.0,2.89059936]
[1771104215210,11.86019108,88.027,88.01,2.89059936]
[1771104215510,0.5,88.026,88.0,2.89059936]
[1771104215708,0.5,88.024,88.0,2.89059936]
[1771104217896,0.5,88.022,88.0,2.89059936]
[1771104220117,0.5,88.022,87.99,2.89059936]
[1771104221512,0.5,88.02,87.967,4.61729252]
[1771104221718,0.5,88.019,87.964,11.36828702]
[1771104221931,0.5,88.009,87.964,11.36828702]
[1771104222302,0.5,87.989,87.96,0.1]
[1771104222997,0.5,87.989,87.96,2.99059936]
[1771104223197,0.5,87.989,87.961,11.36867475]
[1771104223820,0.5,87.989,87.96,2.99059936]
[1771104224405,11.36518616,87.988,87.96,2.99059936]
[1771104224602,0.5,87.987,87.96,2.99059936]
[1771104224799,0.5,87.987,87.96,0.1]
[1771104225001,0.49793334,87.969,87.93,2.99059936]
[1771104225419,0.49793334,87.969,87.93,0.1]
[1771104225604,0.49793334,87.969,87.93,2.89059936]
[1771104225810,0.49793334,87.969,87.931,11.37251601]
[1771104226036,0.49793334,87.969,87.935,11.37203616]
[1771104226204,0.49793334,87.969,87.936,0.1]
[1771104226400,0.49793334,87.967,87.936,0.1]
[1771104226616,0.49793334,87.967,87.94,2.99059936]
[1771104227622,0.49793334,87.982,87.95,2.89059936]
[1771104228312,11.3660904,87.981,87.951,11.46996736]
[1771104229104,0.49793334,87.979,87.934,0.3694892]
[1771104229333,0.49793334,87.979,87.94,2.89059936]
[1771104230305,11.36647798,87.978,87.95,2.89059936]
[1771104230500,28.41183869,87.992,87.934,40.07205048]
[1771104230501,0.49793334,87.999,87.961,0.1]
[1771104230724,0.49793334,87.998,87.96,2.89059936]
[1771104230906,0.49793334,87.998,87.95,2.99059936]
[1771104231102,0.49793334,87.998,87.95,2.89059936]
[1771104231422,0.49793334,87.998,87.961,0.1]
[1771104232016,0.49793334,87.998,87.96,2.89059936]
[1771104232321,11.36402377,87.997,87.961,11.46867475]
[1771104232516,0.49793334,87.996,87.962,0.1]
[1771104232712,0.49793334,87.996,87.963,2.89185862]
[1771104233123,0.49793334,87.996,87.964,0.1]
[1771104233327,0.49793334,87.996,87.97,2.89059936]
[1771104233512,0.49793334,87.996,87.964,0.1]
[1771104234426,0.49793334,88.015,87.981,0.1]
[1771104234603,28.40150857,88.024,87.99,2.99059936]
[1771104234604,0.49793334,88.023,87.99,2.99059936]
[1771104234807,0.49793334,88.023,87.99,2.89059936]
[1771104235007,0.49793334,88.023,87.98,2.89059936]
[1771104235221,0.49793334,88.019,87.98,2.89059936]
[1771104235623,11.3605999,88.024,87.971,11.36738243]
[1771104235624,0.49793334,88.009,87.971,11.36738243]
[1771104235819,0.49793334,88.009,87.98,2.89059936]
[1771104236122,0.49793334,88.02,87.99,2.89059936]
[1771104236514,11.85901464,88.02,87.991,11.36479867]
[1771104236708,0.49793334,88.019,87.991,11.36479867]
[1771104237034,0.49793334,88.019,87.971,28.41845608]
[1771104237035,0.49793334,88.019,87.981,11.3660904]
[1771104237330,0.49793334,88.019,87.981,11.4660904]
[1771104237530,0.49793334,88.019,87.982,0.1]
[1771104239824,0.49793334,88.017,87.982,0.1]
[1771104240123,0.49793334,88.017,87.981,11.3660904]
[1771104240805,0.49793334,88.05,88.01,2.99059936]
[1771104241008,0.49793334,88.039,87.99,2.89059936]
[1771104241231,0.49793334,88.029,87.99,2.89059936]
[1771104241526,0.49793334,88.029,87.981,39.88131641]
[1771104241527,0.49793334,88.019,87.981,11.3660904]
[1771104241928,30.0,88.009,87.99,2.89059936]
[1771104242132,0.49793334,88.026,88.0,2.89059936]
[1771104242427,0.49793334,88.024,87.99,2.89059936]
[1771104242631,0.49793334,88.019,87.981,11.3660904]
[1771104243128,0.49793334,88.019,87.98,2.89059936]
[1771104243428,0.49793334,88.009,87.973,11.3671092]
[1771104244228,0.49793334,88.007,87.973,11.3671092]
[1771104244841,30.0,88.008,87.98,2.89059936]
[1771104245012,30.0,88.008,87.98,3.01746766]
[1771104245212,30.0,88.008,87.981,0.1268683]
[1771104245415,0.49793334,88.013,87.981,0.1268683]
[1771104245926,11.36208698,88.012,87.981,0.1268683]
[1771104246131,0.49793334,88.011,87.981,0.1268683]
[1771104246334,0.49793334,88.009,87.981,11.4929587]
[1771104247937,11.36182981,88.014,87.982,0.12160443]
[1771104248434,11.36182981,88.014,87.99,2.89059936]
[1771104248635,11.36182981,88.014,87.982,0.12160443]
[1771104248813,11.85976315,88.014,87.982,0.12160443]
[1771104249009,0.49793334,88.013,87.982,0.12160443]
[1771104249215,0.49793334,88.013,87.98,2.89521563]
[1771104249535,0.49793334,88.011,87.982,0.11797452]
[1771104250761,0.49793334,88.011,87.977,0.11616568]
[1771104251441,0.49793334,88.009,87.98,2.89521563]
[1771104251640,0.49793334,88.009,87.981,0.11436091]
[1771104252021,0.49793334,88.009,87.98,2.89521563]
[1771104252347,0.49793334,88.009,87.967,11.36789623]
[1771104252512,42.66342378,88.01,87.945,0.11256021]
[1771104252513,0.49793334,87.999,87.945,0.11256021]
[1771104252840,0.49793334,87.989,87.941,0.11256021]
[1771104253435,11.36621959,87.98,87.941,11.48382048]
[1771104253737,0.47735405,87.979,87.941,11.48382048]
[1771104254033,30.0,87.981,87.951,0.11084179]
[1771104254418,30.0,87.975,87.951,0.11084179]
[1771104254632,29.89095169,87.975,87.95,2.89521563]
[1771104254824,0.50452415,87.974,87.941,11.37126027]
[1771104255638,0.50452415,87.967,87.941,11.37126027]
[1771104255839,0.50452415,87.967,87.936,11.37178851]
[1771104256521,30.0,87.956,87.936,11.37178851]
[1771104256721,0.50452415,87.955,87.936,11.37178851]
[1771104257532,30.0,87.947,87.936,11.37178851]
[1771104259633,0.50452415,87.97,87.94,2.89521563]
[1771104259835,0.50452415,87.97,87.95,2.89521563]
[1771104260622,0.50452415,87.978,87.95,2.89521563]
[1771104261543,11.36634878,87.979,87.923,28.43392253]
[1771104261544,0.50452415,87.95,87.923,28.43392253]
[1771104261734,0.50452415,87.95,87.92,2.89521563]
[1771104262143,0.50452415,87.95,87.925,11.37322187]
[1771104262527,30.0,87.946,87.925,11.37322187]
[1771104262731,30.0,87.946,87.922,0.02518019]
[1771104263649,30.0,87.946,87.926,11.37308674]
[1771104263844,30.0,87.946,87.92,2.89521563]
[1771104263845,29.97852767,87.946,87.93,2.89521563]
[1771104264252,29.97852767,87.946,87.935,11.37203616]
[1771104265848,0.51526032,87.971,87.94,2.89521563]
[1771104266152,11.88264275,87.971,87.94,2.89521563]
[1771104266348,0.51526032,87.97,87.94,2.89521563]
[1771104266750,0.51526032,87.97,87.935,39.80212656]
[1771104266944,0.51526032,87.97,87.94,2.89521563]
[1771104267440,0.51526032,87.968,87.94,2.89521563]
[1771104268342,0.51526032,87.968,87.934,0.2694892]
[1771104268343,0.51526032,87.968,87.95,2.89521563]
[1771104268559,0.51526032,87.968,87.941,11.37126027]
[1771104269454,0.51526032,87.968,87.941,11.39762023]
[1771104270345,0.51526032,87.985,87.96,2.89521563]
[1771104270751,0.51526032,87.985,87.95,2.89521563]
[1771104270946,2.89521563,87.98,87.941,11.37126027]
[1771104271151,0.52748224,87.979,87.934,0.2694892]
[1771104271353,0.52748224,87.969,87.934,0.2694892]
[1771104271542,0.52748224,87.957,87.934,0.2694892]
[1771104272264,30.0,87.958,87.94,2.89521563]
[1771104272555,30.0,87.956,87.94,2.89521563]
[1771104273566,28.4151468,87.982,87.934,11.64156308]
[1771104273567,0.52748224,87.975,87.95,2.89521563]
[1771104274057,0.52748224,87.975,87.934,40.07197679]
[1771104274256,0.52748224,87.973,87.934,11.64156308]
[1771104275956,0.52748224,87.973,87.94,2.89521563]
[1771104277043,11.36725321,87.972,87.941,11.37126027]
[1771104277360,0.52748224,87.971,87.941,11.37126027]
[1771104278060,11.36751165,87.97,87.941,11.37126027]
[1771104278284,11.89499389,87.97,87.941,11.37126027]
[1771104278441,0.52748224,87.969,87.941,11.37126027]
[1771104279663,0.52748224,87.967,87.941,11.37126027]
[1771104279968,0.52748224,87.967,87.934,0.2694892]
[1771104280147,0.52748224,87.959,87.934,0.2694892]
[1771104281244,0.52748224,87.968,87.94,2.89521563]
[1771104281459,11.89525233,87.968,87.94,2.89521563]
[1771104281665,0.52748224,87.967,87.94,2.89521563]
[1771104284063,0.52748224,87.967,87.941,11.37126027]
[1771104285056,0.52748224,87.965,87.941,11.37126027]
[1771104286078,0.52748224,87.971,87.95,2.89521563]
[1771104287295,0.52748224,87.99,87.95,2.89521563]
[1771104287457,0.52748224,87.997,87.97,2.89521563]
[1771104287968,0.52748224,87.997,87.96,2.89521563]
[1771104288187,0.52748224,87.995,87.961,11.36867475]
[1771104289085,11.36415291,87.996,87.92,2.89521563]
[1771104289086,0.52748224,87.969,87.92,2.89521563]
[1771104289375,0.52748224,87.959,87.92,2.89521563]
[1771104289556,0.52748224,87.959,87.917,28.43558932]
[1771104290371,0.52748224,87.957,87.924,11.37338509]
[1771104290672,11.3690625,87.958,87.924,11.37338509]
[1771104290673,0.52748224,87.949,87.924,11.37338509]
[1771104291076,2.89521563,87.94,87.924,11.37338509]
[1771104291257,0.52748224,87.939,87.924,11.37338509]
[1771104291571,0.52748224,87.939,87.91,11.37527016]
[1771104291969,0.52748224,87.939,87.91,39.81344556]
[1771104292374,0.52748224,87.939,87.91,11.37527016]
[1771104292569,2.89521563,87.93,87.91,11.37527016]
[1771104292873,0.52223101,87.929,87.901,11.37643485]
[1771104293761,0.52223101,87.929,87.9,0.1]
[1771104293956,0.52223101,87.919,87.9,0.1]
[1771104294157,0.52223101,87.919,87.884,48.96293321]
[1771104294158,0.52223101,87.919,87.893,11.37741163]
[1771104294372,0.52223101,87.909,87.878,28.7470699]
[1771104294575,0.52223101,87.909,87.879,11.37928287]
[1771104294957,0.52223101,87.909,87.874,11.37985475]
[1771104295869,2.89521563,87.9,87.87,0.39672651]
[1771104296072,3.41744664,87.89,87.87,0.1]
[1771104296561,0.52223101,87.889,87.87,0.1]
[1771104298171,0.52223101,87.879,87.86,0.1]
[1771104300658,30.0,87.891,87.861,0.395429]
[1771104300862,30.0,87.891,87.86,0.1]
[1771104300863,0.52223101,87.911,87.871,0.395429]
[1771104301467,0.52223101,87.909,87.871,0.395429]
[1771104302370,0.52223101,87.907,87.872,11.81240774]
[1771104303081,0.52223101,87.907,87.873,0.43221838]
[1771104303575,28.42862241,87.94,87.872,39.83066277]
[1771104303576,0.52223101,87.922,87.881,0.43145854]
[1771104304073,0.52223101,87.919,87.873,0.43145854]
[1771104305470,0.52223101,87.919,87.881,0.42991]
[1771104306360,0.52223101,87.933,87.891,0.42991]
[1771104307280,0.52223101,87.929,87.891,0.42991]
[1771104307581,0.52223101,87.929,87.88,2.89521563]
[1771104307582,0.52223101,87.927,87.887,11.37824275]
[1771104307757,0.52223101,87.919,87.887,11.37824275]
[1771104308766,0.52223101,87.899,87.87,11.38044838]
[1771104308966,0.52223101,87.899,87.861,11.38161414]
[1771104309675,0.52223101,87.897,87.861,11.38161414]
[1771104309980,0.52223101,87.897,87.852,28.45692939]
[1771104310677,0.52223101,87.889,87.852,28.45692939]
[1771104310982,0.52223101,87.889,87.851,0.42670179]
[1771104310983,0.52223101,87.897,87.861,0.42587747]
[1771104311685,0.52223101,87.897,87.862,11.3814846]
[1771104311868,0.52223101,87.897,87.862,11.80652915]
[1771104312068,0.52223101,87.897,87.863,0.42504455]
[1771104312661,0.52223101,87.907,87.871,0.42420316]
[1771104313567,0.52223101,87.907,87.863,0.42452511]
[1771104313985,2.9031976,87.91,87.863,0.42452511]
[1771104313986,0.51770465,87.905,87.864,11.38122553]
[1771104314480,11.37578777,87.906,87.86,0.1]
[1771104314481,0.51770465,87.889,87.86,0.1]
[1771104314803,5.36086188,87.904,87.85,0.1]
[1771104314804,0.51770465,87.879,87.85,0.1]
[1771104316071,0.51770465,87.877,87.85,0.1]
[1771104317497,0.51770465,87.875,87.85,0.1]
[1771104318880,0.51770465,87.869,87.85,0.1]
[1771104319603,0.51770465,87.867,87.85,0.1]
[1771104320602,0.51770465,87.9,87.861,0.4183884]
[1771104321200,0.51770465,87.899,87.861,0.4183884]
[1771104321498,11.37682313,87.898,87.854,11.382521]
[1771104321797,0.51770465,87.897,87.855,0.41746434]
[1771104323580,0.51770465,87.895,87.857,0.41559543]
[1771104323885,0.51770465,87.916,87.871,0.41559543]
[1771104324088,0.51770465,87.914,87.871,0.41559543]
[1771104324398,0.51770465,87.909,87.862,0.41559543]
[1771104324691,0.51770465,87.909,87.86,2.9031976]
[1771104324692,0.51770465,87.899,87.856,39.83791658]
[1771104324896,0.51770465,87.899,87.856,11.38226188]
[1771104325194,7.25905644,87.89,87.856,11.38226188]
[1771104325387,0.51770465,87.889,87.856,11.38226188]
[1771104326781,0.51770465,87.889,87.86,7.25905644]
[1771104327898,0.51770465,87.889,87.861,11.38161414]
[1771104328900,0.51770465,87.889,87.87,7.25905644]
[1771104329080,0.51770465,87.896,87.87,7.25905644]
[1771104329482,0.51770465,87.896,87.861,0.40983124]
[1771104330482,39.81899054,87.898,87.85,0.1]
[1771104330483,0.51770465,87.889,87.85,0.1]
[1771104330689,0.51770465,87.889,87.851,0.40884881]
[1771104330902,11.3781176,87.888,87.86,7.25905644]
[1771104331104,11.3781176,87.888,87.861,0.40884881]
[1771104331314,0.51770465,87.898,87.871,0.40884881]
[1771104333194,0.51770465,87.898,87.872,11.38018936]
[1771104336306,0.51770465,87.898,87.872,11.78403973]
[1771104336806,0.51770465,87.914,87.891,0.40283417]
[1771104337006,0.51770465,87.914,87.88,7.25905644]
[1771104337204,11.37397634,87.92,87.86,7.25905644]
[1771104337205,0.51770465,87.909,87.86,7.25905644]
[1771104337389,0.51770465,87.909,87.851,0.40283417]
[1771104337582,0.51770465,87.909,87.86,7.25905644]
[1771104337794,0.51770465,87.899,87.851,0.40283417]
[1771104337989,0.51770465,87.899,87.86,7.25905644]
[1771104338492,0.51770465,87.899,87.861,0.40078611]
[1771104338697,0.51770465,87.899,87.85,0.1]
[1771104338698,0.51770465,87.899,87.873,0.40078611]
[1771104339699,0.51770465,87.899,87.87,7.25905644]
[1771104339907,0.51770465,87.897,87.871,11.38031887]
[1771104342908,0.53004959,87.896,87.871,11.38031887]
[1771104343499,0.53004959,87.896,87.87,7.25905644]
[1771104343693,0.53004959,87.896,87.861,39.83564949]
[1771104343891,0.53004959,87.896,87.87,7.25905644]
[1771104344503,0.53004959,87.896,87.871,0.39613369]
[1771104344808,0.53004959,87.918,87.88,7.25905644]
[1771104345016,0.53004959,87.918,87.88,2.90200653]
[1771104345396,0.53004959,87.918,87.877,0.39613369]
[1771104346611,39.81027559,87.917,87.862,0.39397273]
[1771104346802,0.53004959,87.899,87.862,0.39397273]
[1771104349319,0.53004959,87.897,87.864,0.39179547]
[1771104351621,0.53004959,87.905,87.866,0.38850054]
[1771104355323,0.53004959,87.905,87.867,39.8329293]
[1771104355521,0.53004959,87.905,87.868,0.38405664]
[1771104356312,0.53004959,87.917,87.871,0.38405664]
[1771104357613,0.53004959,87.917,87.873,0.38181444]
[1771104360026,0.53004959,87.929,87.875,0.3804172]
[1771104360203,0.53004959,87.937,87.891,0.3804172]
[1771104360405,0.53004959,87.909,87.875,0.38108242]
[1771104360810,0.53004959,87.899,87.869,11.38053151]
[1771104361615,2.90200653,87.91,87.87,0.38173999]
[1771104361821,29.86,87.892,87.87,0.38173999]
[1771104362127,29.86,87.892,87.871,11.38031887]
[1771104362304,29.86,87.892,87.872,0.38173999]
[1771104364327,30.39004959,87.892,87.871,11.38031887]
[1771104364719,0.53004959,87.889,87.855,0.38366775]
[1771104366311,0.53004959,87.886,87.856,0.38429562]
[1771104368313,0.53004959,87.886,87.857,11.76826864]
[1771104369428,41.23766055,87.892,87.858,0.38673585]
[1771104369934,0.53004959,87.891,87.858,0.38673585]
[1771104370844,11.90777882,87.891,87.86,0.38732849]
[1771104371033,29.86,87.892,87.86,0.38732849]
[1771104371335,0.53004959,87.891,87.862,0.38732849]
[1771104371517,0.53004959,87.89,87.861,48.18]
[1771104371712,0.53004959,87.889,87.859,11.76978754]
[1771104371931,0.53004959,87.889,87.859,11.38187322]
[1771104375248,2.90333639,87.89,87.85,0.1]
[1771104375249,0.51202206,87.887,87.854,40.22901463]
[1771104375828,0.51202206,87.887,87.854,11.77271213]
[1771104376016,0.51202206,87.887,87.854,11.382521]
[1771104376538,0.51202206,87.887,87.855,0.39129068]
[1771104377124,0.51202206,87.887,87.857,0.39129068]
[1771104378232,29.86,87.892,87.857,0.39129068]
[1771104378844,30.37202206,87.892,87.857,0.39129068]
[1771104379143,0.51202206,87.891,87.857,0.39129068]
[1771104379645,0.51202206,87.89,87.859,0.3928931]
[1771104380644,0.51202206,87.889,87.853,59.62253178]
[1771104380847,0.51202206,87.889,87.854,0.39341502]
[1771104381353,0.51202206,87.889,87.856,0.39393094]
[1771104381822,0.51202206,87.889,87.855,48.24]
[1771104381823,0.51202206,87.906,87.859,0.39393094]
[1771104382133,0.51202206,87.913,87.871,0.39393094]
[1771104383243,0.51202206,87.913,87.873,0.39444093]
[1771104383443,0.51202206,87.911,87.875,0.39494507]
[1771104385443,0.51202206,87.911,87.877,0.39593604]
[1771104385952,0.51202206,87.911,87.88,2.90333639]
[1771104386155,0.51202206,87.911,87.881,0.39593604]
[1771104386452,0.51202206,87.911,87.882,0.39593604]
[1771104387032,0.51202206,87.911,87.883,11.37876494]
[1771104387736,0.51202206,87.911,87.883,11.77566932]
[1771104387932,0.51202206,87.911,87.883,11.37876494]
[1771104388355,0.51202206,87.91,87.883,11.37876494]
[1771104388853,0.51202206,87.909,87.878,11.37936812]
[1771104389245,0.51202206,87.907,87.868,39.83247598]
[1771104389453,0.51202206,87.907,87.868,40.23032658]
[1771104389763,0.51202206,87.907,87.869,0.3978506]
[1771104389964,0.51202206,87.907,87.868,39.83247598]
[1771104389965,0.51202206,87.907,87.871,0.3978506]
[1771104392061,0.51202206,87.907,87.881,0.39877521]
[1771104394646,0.51202206,87.922,87.891,0.40012268]
[1771104395757,0.51202206,87.931,87.893,0.40056156]
[1771104396766,0.51202206,87.931,87.894,0.4009954]
[1771104396962,0.51202206,87.931,87.9,2.90333639]
[1771104397266,0.51202206,87.931,87.9,3.30433179]
[1771104397647,0.51202206,87.931,87.902,11.37630543]
[1771104398271,0.51202206,87.93,87.896,11.37706354]
[1771104398448,0.51202206,87.929,87.896,11.37706354]
[1771104398648,0.51202206,87.929,87.893,48.3]
[1771104398964,0.51202206,87.919,87.886,11.37831842]
[1771104399774,0.51202206,87.919,87.882,28.44713492]
[1771104400070,0.51202206,87.919,87.883,0.40226724]
[1771104402580,0.51202206,87.919,87.885,0.40389589]
[1771104402773,28.42808376,87.942,87.85,0.1]
[1771104402774,0.53254704,87.897,87.85,0.1]
[1771104402948,2.90333639,87.86,87.85,0.1]
[1771104403149,2.90333639,87.86,87.834,11.38511282]
[1771104403350,3.43588343,87.86,87.835,0.49967101]
[1771104403749,0.53254704,87.86,87.835,0.49967101]
[1771104405249,11.9143346,87.86,87.835,0.49967101]
[1771104405449,0.53254704,87.859,87.834,11.38511282]
[1771104406768,0.53254704,87.859,87.834,0.49967101]
[1771104411868,0.53254704,87.873,87.836,0.49967101]
[1771104416475,11.37952612,87.878,87.841,0.49967101]
[1771104416854,0.53254704,87.879,87.841,0.49967101]
[1771104417576,0.53254704,87.877,87.841,0.49967101]
[1771104420276,11.37967135,87.876,87.843,0.49967101]
[1771104420962,0.53254704,87.884,87.843,0.49967101]
[1771104421362,0.53254704,87.899,87.851,0.49967101]
[1771104421661,0.53254704,87.898,87.861,0.49967101]
[1771104422257,0.53254704,87.896,87.863,0.49967101]
[1771104422972,0.53254704,87.896,87.862,11.3814846]
[1771104423179,0.53254704,87.896,87.862,11.88115561]
[1771104423362,0.53254704,87.896,87.863,0.49967101]
[1771104424275,0.53254704,87.894,87.858,0.49967101]
[1771104424778,0.53254704,87.894,87.851,39.83986567]
[1771104424962,0.53254704,87.894,87.861,0.49967101]
[1771104425778,11.37660437,87.9,87.861,0.49967101]
[1771104426375,0.53254704,87.902,87.87,2.90333639]
[1771104426562,0.53254704,87.902,87.871,0.49967101]
[1771104426873,11.37643485,87.901,87.871,0.49967101]
[1771104428578,2.90333639,87.92,87.847,48.24]
[1771104428579,11.9076878,87.911,87.881,0.49967101]
[1771104428873,0.53254704,87.91,87.881,0.49967101]
[1771104429285,11.90713064,87.916,87.881,0.49967101]
[1771104429489,56.3,87.935,87.891,0.49967101]
[1771104429490,0.53254704,87.929,87.891,0.49967101]
[1771104430477,0.53254704,87.928,87.893,0.49967101]
[1771104430780,0.53254704,87.926,87.885,0.49967101]
[1771104431383,0.53254704,87.926,87.891,0.49967101]
[1771104432563,0.53254704,87.924,87.893,0.49967101]
[1771104433773,0.53254704,87.924,87.884,11.37850876]
[1771104433983,0.53254704,87.924,87.873,48.18]
[1771104433984,0.53254704,87.924,87.874,0.55581181]
[1771104434168,0.60526678,87.909,87.861,0.55581181]
[1771104434781,2.9008311,87.9,87.855,11.38229548]
[1771104434980,0.60526678,87.899,87.855,11.38229548]
[1771104435589,0.60526678,87.899,87.86,2.9008311]
[1771104435784,0.60526678,87.899,87.861,0.55581181]
[1771104436471,0.60526678,87.899,87.871,0.55581181]
[1771104436777,11.98208991,87.898,87.871,0.55581181]
[1771104437083,0.60526678,87.897,87.871,0.55581181]
[1771104437467,0.60526678,87.897,87.866,11.38096471]
[1771104437684,0.60526678,87.895,87.866,0.55581181]
[1771104438790,0.60526678,87.895,87.871,0.55581181]
[1771104441284,0.60526678,87.902,87.872,0.55581181]
[1771104442598,0.60526678,87.902,87.874,0.55581181]
[1771104442772,0.60526678,87.902,87.88,2.9008311]
[1771104443078,0.60526678,87.902,87.88,3.45664291]
[1771104443285,0.60526678,87.902,87.881,0.55581181]
[1771104443785,0.60526678,87.909,87.883,0.55581181]
[1771104444366,0.60526678,87.92,87.89,2.9008311]
[1771104444571,0.60526678,87.92,87.882,11.37889442]
[1771104444572,0.60526678,87.92,87.891,0.55581181]
[1771104446600,11.37410571,87.919,87.893,0.55581181]
[1771104446792,11.97937249,87.919,87.893,0.55581181]
[1771104447094,0.60526678,87.918,87.893,0.55581181]
[1771104448896,11.37436445,87.917,87.893,0.55581181]
[1771104449087,0.60526678,87.916,87.893,0.55581181]
[1771104449698,0.60526678,87.916,87.883,11.37873797]
[1771104450402,0.60526678,87.916,87.883,11.93454978]
[1771104450578,0.60526678,87.916,87.872,11.38009598]
[1771104450780,0.60526678,87.916,87.873,0.55581181]
[1771104451394,0.60526678,87.914,87.875,0.55581181]
[1771104451791,0.60526678,87.914,87.881,0.55581181]
[1771104452102,0.60526678,87.914,87.882,0.55581181]
[1771104452484,11.37399961,87.92,87.891,0.55581181]
[1771104452700,0.60526678,87.918,87.884,0.55581181]
[1771104453606,56.24,87.927,87.891,0.55581181]
[1771104453607,0.60526678,87.916,87.891,0.55581181]
[1771104454603,0.60526678,87.914,87.891,0.55581181]